[Event "Late-Titled-Tuesday-Blitz-March-05-2024"]
[Site "Chess.com"]
[Date "2024.03.05"]
[Round "9"]
[White "Felix-Rose"]
[Black "Onthequiet"]
[Result "0-1"]
[WhiteElo "2292"]
[BlackElo "2418"]
[TimeControl "180+1"]
[EndTime "15:41:40 PST"]
[Termination "Onthequiet won on time"]

1. Nf3 {[%clk 0:02:59.8]} 1... d5 {[%clk 0:02:58.9]} 2. e3 {[%clk 0:03:00]} 2...
Nf6 {[%clk 0:02:59]} 3. c4 {[%clk 0:02:59.6]} 3... e6 {[%clk 0:02:58.8]} 4. Nc3
{[%clk 0:02:59.1]} 4... Be7 {[%clk 0:02:58.9]} 5. b3 {[%clk 0:02:59.3]} 5... O-O
{[%clk 0:02:59]} 6. Bb2 {[%clk 0:02:59.4]} 6... b6 {[%clk 0:02:59.5]} 7. cxd5
{[%clk 0:02:53.7]} 7... exd5 {[%clk 0:02:59.4]} 8. Qc2 {[%clk 0:02:53.5]} 8...
c5 {[%clk 0:02:59.1]} 9. d4 {[%clk 0:02:53.1]} 9... Ba6 {[%clk 0:02:57.3]} 10.
Bxa6 {[%clk 0:02:51.3]} 10... Nxa6 {[%clk 0:02:58.2]} 11. O-O {[%clk 0:02:49.4]}
11... c4 {[%clk 0:02:55.7]} 12. Qe2 {[%clk 0:02:35.7]} 12... Rc8 {[%clk
0:02:50.5]} 13. Ne5 {[%clk 0:02:11.7]} 13... Nb4 {[%clk 0:02:28.6]} 14. bxc4
{[%clk 0:02:04.2]} 14... dxc4 {[%clk 0:02:28.2]} 15. Nxc4 {[%clk 0:01:53.3]}
15... Re8 {[%clk 0:02:21.8]} 16. Rfc1 {[%clk 0:01:42.8]} 16... Bf8 {[%clk
0:02:21.3]} 17. Ne5 {[%clk 0:01:24.1]} 17... h6 {[%clk 0:01:55.1]} 18. h3 {[%clk
0:01:10.2]} 18... Nc6 {[%clk 0:01:54.4]} 19. Nxc6 {[%clk 0:00:48]} 19... Rxc6
{[%clk 0:01:55.3]} 20. Qf3 {[%clk 0:00:45.5]} 20... Rce6 {[%clk 0:01:51.6]} 21.
Rd1 {[%clk 0:00:41]} 21... Bb4 {[%clk 0:01:50.3]} 22. Ne2 {[%clk 0:00:32.9]}
22... Ne4 {[%clk 0:01:47.3]} 23. d5 {[%clk 0:00:29.3]} 23... Rg6 {[%clk
0:01:44.8]} 24. Nf4 {[%clk 0:00:25.3]} 24... Rg5 {[%clk 0:01:42.4]} 25. h4
{[%clk 0:00:17.4]} 25... Rf5 {[%clk 0:01:40.5]} 26. Qg4 {[%clk 0:00:17.6]} 26...
Rf6 {[%clk 0:01:21]} 27. Bxf6 {[%clk 0:00:17.4]} 27... Qxf6 {[%clk 0:01:21.7]}
28. f3 {[%clk 0:00:13.4]} 28... Nd6 {[%clk 0:01:17.2]} 29. Nh5 {[%clk
0:00:13.7]} 29... Qg6 {[%clk 0:01:08.4]} 30. Qxg6 {[%clk 0:00:13.6]} 30... fxg6
{[%clk 0:01:09.3]} 31. Nf4 {[%clk 0:00:13.1]} 31... Kh7 {[%clk 0:01:05.8]} 32.
e4 {[%clk 0:00:12.3]} 32... Bc3 {[%clk 0:01:03.6]} 33. Rac1 {[%clk 0:00:12.3]}
33... Be5 {[%clk 0:01:03.4]} 34. Ne6 {[%clk 0:00:12.9]} 34... Bg3 {[%clk
0:00:40.4]} 35. Rc7 {[%clk 0:00:10]} 35... Rg8 {[%clk 0:00:39.9]} 36. h5 {[%clk
0:00:09.3]} 36... gxh5 {[%clk 0:00:39.4]} 37. Rxa7 {[%clk 0:00:08.3]} 37... Nc4
{[%clk 0:00:26.1]} 38. f4 {[%clk 0:00:06.3]} 38... h4 {[%clk 0:00:19.2]} 39. f5
{[%clk 0:00:06.1]} 39... Be5 {[%clk 0:00:16.9]} 40. Rc1 {[%clk 0:00:04.9]} 40...
b5 {[%clk 0:00:16.6]} 41. Kh1 {[%clk 0:00:04.7]} 41... h5 {[%clk 0:00:16.3]} 42.
a4 {[%clk 0:00:05.1]} 42... Nd2 {[%clk 0:00:14.3]} 43. axb5 {[%clk 0:00:04.8]}
43... Nxe4 {[%clk 0:00:14.3]} 44. Re1 {[%clk 0:00:03.9]} 44... Ng3+ {[%clk
0:00:14.1]} 45. Kg1 {[%clk 0:00:03.3]} 45... Bb8 {[%clk 0:00:13.4]} 46. Rb7
{[%clk 0:00:03.4]} 46... Nxf5 {[%clk 0:00:13.1]} 47. Nxg7 {[%clk 0:00:02.1]}
47... Nxg7 {[%clk 0:00:12.5]} 48. Ree7 {[%clk 0:00:01.4]} 48... Kg6 {[%clk
0:00:12.3]} 0-1

[Event "Late-Titled-Tuesday-Blitz-March-05-2024"]
[Site "Chess.com"]
[Date "2024.03.05"]
[Round "9"]
[White "Akhayan"]
[Black "LUISMIGUELOV"]
[Result "1-0"]
[WhiteElo "2374"]
[BlackElo "2159"]
[TimeControl "180+1"]
[EndTime "15:41:40 PST"]
[Termination "Akhayan won on time"]

1. d4 {[%clk 0:03:00.9]} 1... d5 {[%clk 0:02:56.6]} 2. c4 {[%clk 0:02:57.5]}
2... c6 {[%clk 0:02:56.4]} 3. Nc3 {[%clk 0:02:50.5]} 3... Nf6 {[%clk 0:02:56.5]}
4. cxd5 {[%clk 0:02:43.8]} 4... cxd5 {[%clk 0:02:54.1]} 5. Nf3 {[%clk
0:02:43.8]} 5... Nc6 {[%clk 0:02:53.7]} 6. Bf4 {[%clk 0:02:44.2]} 6... Qb6
{[%clk 0:02:45.2]} 7. e3 {[%clk 0:02:38.4]} 7... Bf5 {[%clk 0:02:34]} 8. Bd3
{[%clk 0:02:35.1]} 8... Bxd3 {[%clk 0:02:31.3]} 9. Qxd3 {[%clk 0:02:35.7]} 9...
e6 {[%clk 0:02:29.3]} 10. O-O {[%clk 0:02:34.9]} 10... Be7 {[%clk 0:02:27.5]}
11. Qb5 {[%clk 0:02:27.2]} 11... Qxb5 {[%clk 0:02:24.3]} 12. Nxb5 {[%clk
0:02:26.4]} 12... O-O {[%clk 0:02:22.4]} 13. h3 {[%clk 0:02:20.6]} 13... a6
{[%clk 0:02:22.2]} 14. Nc3 {[%clk 0:02:19.2]} 14... h6 {[%clk 0:02:17.7]} 15.
Rac1 {[%clk 0:02:16.2]} 15... Rfc8 {[%clk 0:02:17.2]} 16. Na4 {[%clk 0:02:16.3]}
16... Nb4 {[%clk 0:02:01.4]} 17. Nb6 {[%clk 0:02:05]} 17... Rxc1 {[%clk
0:01:59.3]} 18. Rxc1 {[%clk 0:02:04.8]} 18... Re8 {[%clk 0:01:52.4]} 19. a3
{[%clk 0:02:02]} 19... Nd3 {[%clk 0:01:51.8]} 20. Rc7 {[%clk 0:01:55.9]} 20...
Nxf4 {[%clk 0:01:51.3]} 21. exf4 {[%clk 0:01:54.1]} 21... Bd8 {[%clk 0:01:48.3]}
22. Rxb7 {[%clk 0:01:52.7]} 22... Bxb6 {[%clk 0:01:48.1]} 23. Rxb6 {[%clk
0:01:52.6]} 23... a5 {[%clk 0:01:47.5]} 24. b4 {[%clk 0:01:49.6]} 24... axb4
{[%clk 0:01:46.2]} 25. axb4 {[%clk 0:01:50.3]} 25... Ra8 {[%clk 0:01:44]} 26.
Ne5 {[%clk 0:01:41]} 26... Ra4 {[%clk 0:01:39]} 27. Rb7 {[%clk 0:01:32.9]} 27...
Ne4 {[%clk 0:01:25]} 28. f3 {[%clk 0:01:29.1]} 28... Ng3 {[%clk 0:00:58.2]} 29.
Kf2 {[%clk 0:00:57.4]} 29... Nf5 {[%clk 0:00:57.5]} 30. Rb8+ {[%clk 0:00:51.6]}
30... Kh7 {[%clk 0:00:56.3]} 31. Nxf7 {[%clk 0:00:49.2]} 31... Ra2+ {[%clk
0:00:53.4]} 32. Ke1 {[%clk 0:00:48.5]} 32... Nxd4 {[%clk 0:00:52.8]} 33. b5
{[%clk 0:00:39.2]} 33... Rb2 {[%clk 0:00:50.3]} 34. b6 {[%clk 0:00:38.8]} 34...
Nc6 {[%clk 0:00:48.8]} 35. Rh8+ {[%clk 0:00:26.3]} 35... Kg6 {[%clk 0:00:47.4]}
36. Rc8 {[%clk 0:00:26.8]} 36... Kxf7 {[%clk 0:00:38.8]} 37. Rxc6 {[%clk
0:00:25.4]} 37... Kf6 {[%clk 0:00:36.8]} 38. g4 {[%clk 0:00:23.6]} 38... g6
{[%clk 0:00:35.2]} 39. h4 {[%clk 0:00:20.4]} 39... h5 {[%clk 0:00:31.5]} 40. f5
{[%clk 0:00:18.6]} 40... gxf5 {[%clk 0:00:29.6]} 41. gxh5 {[%clk 0:00:19.3]}
41... f4 {[%clk 0:00:22.6]} 42. h6 {[%clk 0:00:19.5]} 42... Kg6 {[%clk
0:00:22.3]} 43. Rxe6+ {[%clk 0:00:18.2]} 43... Kh7 {[%clk 0:00:21.9]} 44. Rd6
{[%clk 0:00:18.4]} 44... d4 {[%clk 0:00:13.1]} 45. Kd1 {[%clk 0:00:16.6]} 45...
d3 {[%clk 0:00:12.1]} 46. h5 {[%clk 0:00:14.3]} 46... d2 {[%clk 0:00:06.3]} 47.
Rxd2 {[%clk 0:00:11.8]} 47... Rxb6 {[%clk 0:00:05.8]} 48. Rd4 {[%clk 0:00:12.1]}
48... Rxh6 {[%clk 0:00:05.3]} 49. Rxf4 {[%clk 0:00:12.3]} 49... Rxh5 {[%clk
0:00:04.9]} 50. Ke2 {[%clk 0:00:12.9]} 50... Kg6 {[%clk 0:00:04.4]} 51. Ra4
{[%clk 0:00:11.5]} 51... Re5+ {[%clk 0:00:03.4]} 52. Kf2 {[%clk 0:00:11.3]}
52... Kf5 {[%clk 0:00:03.7]} 53. Kg3 {[%clk 0:00:10.3]} 53... Re1 {[%clk
0:00:02.8]} 54. Ra5+ {[%clk 0:00:10]} 54... Kf6 {[%clk 0:00:02.7]} 55. Kf4
{[%clk 0:00:10.5]} 55... Re6 {[%clk 0:00:02.5]} 56. Rb5 {[%clk 0:00:10.4]} 56...
Ra6 {[%clk 0:00:01.9]} 57. Kg4 {[%clk 0:00:10.6]} 1-0

[Event "Late-Titled-Tuesday-Blitz-March-05-2024"]
[Site "Chess.com"]
[Date "2024.03.05"]
[Round "9"]
[White "XDPS"]
[Black "ChessSwole"]
[Result "1-0"]
[WhiteElo "2902"]
[BlackElo "2726"]
[TimeControl "180+1"]
[EndTime "15:41:42 PST"]
[Termination "XDPS won by resignation"]

1. d4 {[%clk 0:02:59.3]} 1... d5 {[%clk 0:02:58.9]} 2. Nf3 {[%clk 0:02:59.7]}
2... Nf6 {[%clk 0:02:58]} 3. Bf4 {[%clk 0:03:00.3]} 3... c5 {[%clk 0:02:58]} 4.
e3 {[%clk 0:03:00.9]} 4... Nc6 {[%clk 0:02:58.3]} 5. Nbd2 {[%clk 0:03:01.5]}
5... cxd4 {[%clk 0:02:57.4]} 6. exd4 {[%clk 0:03:01.7]} 6... Bf5 {[%clk
0:02:58.1]} 7. c3 {[%clk 0:03:01.8]} 7... e6 {[%clk 0:02:57.8]} 8. Qb3 {[%clk
0:02:59.8]} 8... Qc8 {[%clk 0:02:54.3]} 9. Be2 {[%clk 0:02:58.5]} 9... h6 {[%clk
0:02:49.3]} 10. O-O {[%clk 0:02:58.5]} 10... Be7 {[%clk 0:02:49.6]} 11. Rfe1
{[%clk 0:02:59]} 11... O-O {[%clk 0:02:49.5]} 12. Nf1 {[%clk 0:02:59.5]} 12...
Ne4 {[%clk 0:02:45.8]} 13. Ne3 {[%clk 0:02:59.6]} 13... Bg6 {[%clk 0:02:44.9]}
14. Qd1 {[%clk 0:02:56.4]} 14... Bd6 {[%clk 0:02:43.7]} 15. Bxd6 {[%clk
0:02:53.8]} 15... Nxd6 {[%clk 0:02:44.6]} 16. Ng4 {[%clk 0:02:54.2]} 16... Bh5
{[%clk 0:02:39.2]} 17. Nge5 {[%clk 0:02:47.6]} 17... Bxf3 {[%clk 0:02:33.2]} 18.
Nxf3 {[%clk 0:02:47.2]} 18... b5 {[%clk 0:02:31.5]} 19. Rc1 {[%clk 0:02:42.8]}
19... Qd7 {[%clk 0:02:24.1]} 20. Bd3 {[%clk 0:02:39.6]} 20... Rac8 {[%clk
0:02:12.7]} 21. Bb1 {[%clk 0:02:39.3]} 21... b4 {[%clk 0:02:12.1]} 22. Qd3
{[%clk 0:02:38.7]} 22... Ne4 {[%clk 0:02:12.1]} 23. c4 {[%clk 0:02:37.7]} 23...
f5 {[%clk 0:02:10.7]} 24. c5 {[%clk 0:02:34.5]} 24... Qf7 {[%clk 0:01:48.5]} 25.
Bc2 {[%clk 0:02:32.9]} 25... Qf6 {[%clk 0:01:45]} 26. Ba4 {[%clk 0:02:32.6]}
26... Nd8 {[%clk 0:01:41.8]} 27. Ne5 {[%clk 0:02:29.7]} 27... Nf7 {[%clk
0:01:36.2]} 28. Nd7 {[%clk 0:02:28.6]} 28... Qh4 {[%clk 0:01:34.8]} 29. g3
{[%clk 0:02:28.4]} 29... Qh5 {[%clk 0:01:27.2]} 30. f3 {[%clk 0:02:25.7]} 30...
Neg5 {[%clk 0:01:09.5]} 31. Re3 {[%clk 0:02:25.1]} 31... f4 {[%clk 0:01:07.1]}
32. gxf4 {[%clk 0:01:53.8]} 32... Nh3+ {[%clk 0:01:07.4]} 33. Kf1 {[%clk
0:01:54.2]} 33... Nxf4 {[%clk 0:01:07.8]} 34. Qd2 {[%clk 0:01:54.9]} 34... Qh3+
{[%clk 0:01:04.4]} 35. Kg1 {[%clk 0:01:53.8]} 35... Ng5 {[%clk 0:01:04]} 36.
Nxf8 {[%clk 0:01:42.5]} 36... Nxf3+ {[%clk 0:00:59.9]} 37. Kh1 {[%clk
0:01:16.9]} 37... Nxd2 {[%clk 0:00:23.3]} 38. Rxh3 {[%clk 0:01:16.6]} 38... Nxh3
{[%clk 0:00:23.6]} 39. Nxe6 {[%clk 0:01:17.2]} 39... Ne4 {[%clk 0:00:17.7]} 40.
Bd7 {[%clk 0:01:15]} 40... Ra8 {[%clk 0:00:14.9]} 41. c6 {[%clk 0:01:06.2]}
41... Nhf2+ {[%clk 0:00:15.2]} 42. Kg2 {[%clk 0:01:05]} 42... Nd3 {[%clk
0:00:16.1]} 43. Rf1 {[%clk 0:01:02.9]} 43... Nd6 {[%clk 0:00:12.6]} 44. c7
{[%clk 0:00:58]} 44... g5 {[%clk 0:00:12.1]} 45. Rf6 {[%clk 0:00:54.7]} 45...
Nxb2 {[%clk 0:00:05.7]} 46. Bc6 {[%clk 0:00:30.8]} 46... Rc8 {[%clk 0:00:05.2]}
47. Bxd5 {[%clk 0:00:31.5]} 47... Kh8 {[%clk 0:00:04.8]} 48. Rxh6+ {[%clk
0:00:15]} 48... Kg8 {[%clk 0:00:04.4]} 49. Nxg5+ {[%clk 0:00:14.6]} 49... Kg7
{[%clk 0:00:04.1]} 50. Rxd6 {[%clk 0:00:15.4]} 50... Nd3 {[%clk 0:00:04]} 51.
Rd7+ {[%clk 0:00:15.1]} 51... Kf6 {[%clk 0:00:04.1]} 52. Ne4+ {[%clk 0:00:15.3]}
52... Kf5 {[%clk 0:00:04.8]} 53. Nc5 {[%clk 0:00:14.9]} 53... Nf4+ {[%clk
0:00:04.3]} 54. Kf3 {[%clk 0:00:15.5]} 54... Nxd5 {[%clk 0:00:05.2]} 55. Rxd5+
{[%clk 0:00:16.3]} 55... Kf6 {[%clk 0:00:05.2]} 56. Rd7 {[%clk 0:00:16.2]} 56...
a5 {[%clk 0:00:05]} 57. Ke4 {[%clk 0:00:16.2]} 1-0

[Event "Late-Titled-Tuesday-Blitz-March-05-2024"]
[Site "Chess.com"]
[Date "2024.03.05"]
[Round "9"]
[White "katharinareinecke"]
[Black "Vesapesa"]
[Result "0-1"]
[WhiteElo "1971"]
[BlackElo "2218"]
[TimeControl "180+1"]
[EndTime "15:41:42 PST"]
[Termination "Vesapesa won on time"]

1. d4 {[%clk 0:02:58.9]} 1... d5 {[%clk 0:02:59.8]} 2. c4 {[%clk 0:02:57.6]}
2... e6 {[%clk 0:02:59.7]} 3. Nf3 {[%clk 0:02:57.8]} 3... Nf6 {[%clk 0:02:58.3]}
4. g3 {[%clk 0:02:58.1]} 4... dxc4 {[%clk 0:02:58.5]} 5. Bg2 {[%clk 0:02:58]}
5... Bb4+ {[%clk 0:02:58.1]} 6. Bd2 {[%clk 0:02:57.3]} 6... a5 {[%clk 0:02:58]}
7. O-O {[%clk 0:02:56.4]} 7... O-O {[%clk 0:02:57.8]} 8. a3 {[%clk 0:02:53.4]}
8... Bxd2 {[%clk 0:02:56.9]} 9. Nbxd2 {[%clk 0:02:53.7]} 9... b5 {[%clk
0:02:53.8]} 10. a4 {[%clk 0:02:52.4]} 10... c6 {[%clk 0:02:52.7]} 11. axb5
{[%clk 0:02:44.7]} 11... cxb5 {[%clk 0:02:53.6]} 12. Ne5 {[%clk 0:02:44.2]}
12... Nd5 {[%clk 0:02:52.1]} 13. e4 {[%clk 0:02:30.7]} 13... Nb4 {[%clk
0:02:45.6]} 14. Nb1 {[%clk 0:02:03.9]} 14... Bb7 {[%clk 0:02:41.8]} 15. Nc3
{[%clk 0:02:03.1]} 15... Qb6 {[%clk 0:02:25.1]} 16. d5 {[%clk 0:01:56.1]} 16...
f6 {[%clk 0:02:09.8]} 17. Ng4 {[%clk 0:01:23.2]} 17... Nd3 {[%clk 0:02:05.4]}
18. dxe6 {[%clk 0:01:12.2]} 18... b4 {[%clk 0:01:37.7]} 19. Nd5 {[%clk
0:01:07.2]} 19... Qd6 {[%clk 0:01:27.9]} 20. e7 {[%clk 0:01:01.7]} 20... Re8
{[%clk 0:01:23.9]} 21. b3 {[%clk 0:00:58.3]} 21... Bxd5 {[%clk 0:01:14.7]} 22.
exd5 {[%clk 0:00:58]} 22... Nb2 {[%clk 0:01:14]} 23. Qd4 {[%clk 0:00:52.2]}
23... c3 {[%clk 0:01:12.5]} 24. Rfe1 {[%clk 0:00:44.8]} 24... Nd7 {[%clk
0:01:08.6]} 25. Re6 {[%clk 0:00:43.2]} 25... Qc5 {[%clk 0:01:06]} 26. Qxc5
{[%clk 0:00:39.7]} 26... Nxc5 {[%clk 0:01:06.9]} 27. Ree1 {[%clk 0:00:34.6]}
27... Ncd3 {[%clk 0:00:58.3]} 28. d6 {[%clk 0:00:29.8]} 28... Nxe1 {[%clk
0:00:54.4]} 29. Rxe1 {[%clk 0:00:28.9]} 29... Ra7 {[%clk 0:00:49.3]} 30. Bc6
{[%clk 0:00:27.7]} 30... Nd3 {[%clk 0:00:36.8]} 31. Rf1 {[%clk 0:00:23.2]} 31...
Rexe7 {[%clk 0:00:30.6]} 32. dxe7 {[%clk 0:00:20.9]} 32... Rxe7 {[%clk
0:00:31.5]} 33. Bd5+ {[%clk 0:00:18.5]} 33... Kf8 {[%clk 0:00:30.3]} 34. Bc4
{[%clk 0:00:18.6]} 34... Ne1 {[%clk 0:00:23.4]} 35. Ne3 {[%clk 0:00:17]} 35...
Nf3+ {[%clk 0:00:23.1]} 36. Kg2 {[%clk 0:00:17.1]} 36... Nd2 {[%clk 0:00:22.6]}
37. Ra1 {[%clk 0:00:16.9]} 37... Rxe3 {[%clk 0:00:18.4]} 38. fxe3 {[%clk
0:00:16.6]} 38... Nxc4 {[%clk 0:00:18.2]} 39. bxc4 {[%clk 0:00:16.1]} 39... b3
{[%clk 0:00:18.1]} 40. c5 {[%clk 0:00:12.4]} 40... b2 {[%clk 0:00:17.1]} 41. Rd1
{[%clk 0:00:10.1]} 41... c2 {[%clk 0:00:15.9]} 42. Rd8+ {[%clk 0:00:10.1]} 42...
Ke7 {[%clk 0:00:15.9]} 43. Rb8 {[%clk 0:00:09.8]} 43... c1=Q {[%clk 0:00:15.4]}
44. Rb7+ {[%clk 0:00:08.5]} 44... Ke6 {[%clk 0:00:15.6]} 45. Rb6+ {[%clk
0:00:08.6]} 45... Kf5 {[%clk 0:00:15]} 46. g4+ {[%clk 0:00:08.2]} 46... Kxg4
{[%clk 0:00:14.4]} 47. h3+ {[%clk 0:00:08.1]} 47... Kh4 {[%clk 0:00:14]} 48. e4
{[%clk 0:00:05.8]} 48... Qd2+ {[%clk 0:00:13.5]} 49. Kf3 {[%clk 0:00:05.7]}
49... Qd3+ {[%clk 0:00:13.1]} 50. Kf4 {[%clk 0:00:05.5]} 50... g5+ {[%clk
0:00:13.1]} 51. Kf5 {[%clk 0:00:05.3]} 51... Qf3+ {[%clk 0:00:13.4]} 52. Ke6
{[%clk 0:00:05.4]} 52... Qxe4+ {[%clk 0:00:13.5]} 53. Kd6 {[%clk 0:00:05.5]}
53... Qe5+ {[%clk 0:00:13]} 54. Kc6 {[%clk 0:00:05.3]} 54... Qe4+ {[%clk
0:00:12.1]} 55. Kc7 {[%clk 0:00:04]} 55... b1=Q {[%clk 0:00:12.2]} 56. Rxb1
{[%clk 0:00:03.7]} 56... Qxb1 {[%clk 0:00:13.1]} 57. c6 {[%clk 0:00:04.3]} 57...
Qc2 {[%clk 0:00:13.2]} 58. Kd7 {[%clk 0:00:04.7]} 58... a4 {[%clk 0:00:13.6]}
0-1

[Event "Late-Titled-Tuesday-Blitz-March-05-2024"]
[Site "Chess.com"]
[Date "2024.03.05"]
[Round "9"]
[White "VladimirKramnik"]
[Black "JSPrepz"]
[Result "1-0"]
[WhiteElo "2998"]
[BlackElo "2858"]
[TimeControl "180+1"]
[EndTime "15:41:43 PST"]
[Termination "VladimirKramnik won by resignation"]

1. e4 {[%clk 0:03:00.9]} 1... e5 {[%clk 0:03:00]} 2. Nf3 {[%clk 0:03:00.2]} 2...
Nc6 {[%clk 0:03:00.6]} 3. Bc4 {[%clk 0:03:00.2]} 3... Nf6 {[%clk 0:03:00.9]} 4.
d3 {[%clk 0:03:00.4]} 4... h6 {[%clk 0:02:59.9]} 5. O-O {[%clk 0:03:00.3]} 5...
d6 {[%clk 0:02:56.4]} 6. c3 {[%clk 0:03:00.3]} 6... g6 {[%clk 0:02:56.9]} 7. d4
{[%clk 0:02:56.1]} 7... Bg4 {[%clk 0:02:47.3]} 8. Qb3 {[%clk 0:02:47.4]} 8...
Na5 {[%clk 0:02:21.5]} 9. Qa4+ {[%clk 0:02:31.1]} 9... c6 {[%clk 0:02:08.8]} 10.
Be2 {[%clk 0:02:29.5]} 10... b5 {[%clk 0:02:04.7]} 11. Qc2 {[%clk 0:02:28.4]}
11... Bxf3 {[%clk 0:01:55.6]} 12. Bxf3 {[%clk 0:02:28.3]} 12... Bg7 {[%clk
0:01:55.2]} 13. Rd1 {[%clk 0:02:25.1]} 13... Qc7 {[%clk 0:01:51]} 14. a4 {[%clk
0:02:15]} 14... O-O {[%clk 0:01:49.8]} 15. axb5 {[%clk 0:01:59.6]} 15... cxb5
{[%clk 0:01:49.8]} 16. d5 {[%clk 0:01:26.6]} 16... Nc4 {[%clk 0:01:45.4]} 17.
Be2 {[%clk 0:01:24.5]} 17... a5 {[%clk 0:01:43.3]} 18. b3 {[%clk 0:01:22.1]}
18... Nb6 {[%clk 0:01:38.3]} 19. Bxb5 {[%clk 0:01:22]} 19... Nh5 {[%clk
0:01:22.8]} 20. Bc6 {[%clk 0:01:20.6]} 20... Rab8 {[%clk 0:01:18.6]} 21. Na3
{[%clk 0:01:15.2]} 21... f5 {[%clk 0:01:14.2]} 22. Nb5 {[%clk 0:01:15.1]} 22...
Qd8 {[%clk 0:01:14]} 23. exf5 {[%clk 0:01:10.3]} 23... gxf5 {[%clk 0:01:13.3]}
24. Rxa5 {[%clk 0:01:04.8]} 24... f4 {[%clk 0:01:07.9]} 25. Qg6 {[%clk
0:00:57.8]} 25... Qh4 {[%clk 0:00:58.3]} 26. Nxd6 {[%clk 0:00:39.8]} 26... f3
{[%clk 0:00:28.2]} 27. g3 {[%clk 0:00:34.8]} 27... Rf6 {[%clk 0:00:14.8]} 28.
Qd3 {[%clk 0:00:33.6]} 28... Qh3 {[%clk 0:00:14.4]} 29. Qf1 {[%clk 0:00:33.3]}
29... Qxf1+ {[%clk 0:00:11.3]} 30. Kxf1 {[%clk 0:00:33.3]} 30... Rxd6 {[%clk
0:00:12.2]} 31. c4 {[%clk 0:00:33.1]} 31... Nc8 {[%clk 0:00:05.8]} 32. c5 {[%clk
0:00:28.4]} 32... Rd8 {[%clk 0:00:06.2]} 33. d6 {[%clk 0:00:28.3]} 33... Nf6
{[%clk 0:00:05.4]} 34. Bxf3 {[%clk 0:00:24.9]} 34... Rxb3 {[%clk 0:00:04.8]} 35.
Be2 {[%clk 0:00:24.9]} 35... Rb8 {[%clk 0:00:02.4]} 36. Ba3 {[%clk 0:00:22.7]}
36... Ne4 {[%clk 0:00:01.8]} 37. c6 {[%clk 0:00:19.4]} 37... Rxd6 {[%clk
0:00:02.3]} 38. Bxd6 {[%clk 0:00:17.4]} 38... Ncxd6 {[%clk 0:00:02.8]} 39. c7
{[%clk 0:00:12.2]} 39... Rc8 {[%clk 0:00:02.8]} 40. Ra7 {[%clk 0:00:11.4]} 40...
Bf8 {[%clk 0:00:02]} 41. Bg4 {[%clk 0:00:10.5]} 41... Re8 {[%clk 0:00:02.4]} 42.
Bd7 {[%clk 0:00:09.8]} 42... Re7 {[%clk 0:00:02.9]} 43. Bc6 {[%clk 0:00:06.4]}
43... Kg7 {[%clk 0:00:02.5]} 44. Bxe4 {[%clk 0:00:05.5]} 44... Nxe4 {[%clk
0:00:03.2]} 45. c8=Q {[%clk 0:00:05]} 45... Rxa7 {[%clk 0:00:04.1]} 46. Rd7+
{[%clk 0:00:04.6]} 46... Rxd7 {[%clk 0:00:03.6]} 47. Qxd7+ {[%clk 0:00:05.2]}
47... Kf6 {[%clk 0:00:04.1]} 48. Qd5 {[%clk 0:00:04.9]} 48... Ng5 {[%clk
0:00:04.2]} 49. h4 {[%clk 0:00:04.2]} 49... Ne6 {[%clk 0:00:04.3]} 50. Kg2
{[%clk 0:00:04.9]} 50... Be7 {[%clk 0:00:04.1]} 51. Qf3+ {[%clk 0:00:05.5]}
51... Kg6 {[%clk 0:00:04.3]} 52. Qg4+ {[%clk 0:00:06.2]} 52... Kf6 {[%clk
0:00:05]} 53. h5 {[%clk 0:00:06.6]} 53... Ng5 {[%clk 0:00:04.5]} 54. Qc4 {[%clk
0:00:07.3]} 54... Kg7 {[%clk 0:00:01.9]} 55. Qd5 {[%clk 0:00:07.9]} 55... Bf6
{[%clk 0:00:02.4]} 56. Qd7+ {[%clk 0:00:08.2]} 56... Kg8 {[%clk 0:00:02.5]} 57.
Qf5 {[%clk 0:00:08.6]} 57... Kg7 {[%clk 0:00:02.8]} 58. Qg6+ {[%clk 0:00:08.6]}
1-0